Workbook

Sheet Etiquette
B1: Outil permettant de déterminer l'échelle des consommations d'énergie et de production de gaz à effet de serre à partir des relevés des consommations
C3: Bâtiment
D5: Usage principal du bâtiment | O5: Habitation
L7: Surface du bâtiment | O7: 75 | Q7: m²
C10: Moyenne annuelle des consommations (1)
D12: Source d'énergie | M12: Consommation annuelle
C14: Électricité (hors électricité d’origine renouvelable utilisée dans le bâtiment) | M14: 3716 | Q14: =IF(C14="","",VLOOKUP(C14,coefEnergie,5,FALSE)) -> kWh par an | U14: =IF(C14="","0",VLOOKUP(C14,coefEnergie,2,FALSE)) -> 2.58 | V14: =IF(C14="","0",VLOOKUP(C14,coefEnergie,3,FALSE)) -> 0.084
C16: Plaquettes forestières | M16: 0.48 | Q16: =IF(C16="","",VLOOKUP(C16,coefEnergie,5,FALSE)) -> tonnes par an | U16: =IF(C16="","0",VLOOKUP(C16,coefEnergie,2,FALSE)) -> 2760 | V16: =IF(C16="","0",VLOOKUP(C16,coefEnergie,3,FALSE)) -> 35.88
Q18: =IF(C18="","",VLOOKUP(C18,coefEnergie,5,FALSE)) ->  | U18: =IF(C18="","0",VLOOKUP(C18,coefEnergie,2,FALSE)) -> 0 | V18: =IF(C18="","0",VLOOKUP(C18,coefEnergie,3,FALSE)) -> 0
U20: =M14*U14+M16*U16+M18*U18 -> 10912.08 | V20: =M14*V14+M16*V16+M18*V18 -> 329.3664
U21: =ROUND(U20/surface,0) -> 145 | V21: =ROUND(V20/surface,0) -> 4
C23: Etiquette énergétique
C24: =IF(batiment="habitation","Logement économe","Batiment économe") -> Logement économe | O24: =IF(batiment="habitation","Logement","Batiment") -> Logement
B26: Consommation énergétique en kWh/m².an en énergie primaire | C26: < 50 | E26: A | O26: =IF(energetique<V26,energetique,"") ->  | Q26: Plus le bâtiment consomme des kWh/m².an, plus le bâtiment est énergivore. La moyenne du parc français se situe autour de 240 kWh/m².an (classe E). | V26: 50
C27: 51 à 90 | F27: B | O27: =IF(energetique>=U27,IF(energetique<V27,energetique,""),"") ->  | U27: 50 | V27: 90
C28: 91 à 150 | G28: C | O28: 145 | U28: 90 | V28: 150
C29: 151 à 230 | H29: D | U29: 150 | V29: 230
C30: 231 à 330 | I30: E | U30: 230 | V30: 330
C31: 331 à 450 | J31: F | U31: 330 | V31: 450
C32: =IF(batiment="habitation","> 450","451 à 590") -> > 450 | K32: G | U32: 450 | V32: 590
C33: =IF(batiment="habitation",0,"591 à 750") -> 0 | L33: =IF(batiment="habitation",0,"H") -> 0 | U33: 590 | V33: 750
C34: =IF(batiment="habitation",0,"> 750") -> 0 | M34: =IF(batiment="habitation",0,"I") -> 0 | O34: =IF(energetique>=U34,energetique,0) -> 0 | U34: 750
C35: =IF(batiment="habitation","Logement énergivore","Batiment énergivore") -> Logement énergivore
O37: kWh / m².an
C38: Etiquette climat
C39: Faible émission de GES | O39: =IF(batiment="habitation","Logement","Batiment") -> Logement
B41: Emissions de gaz à effet de serre en kg eq CO2 / m².an | C41: < 5 | E41: A | O41: =IF(climat<V41,climat,"") -> 4 | Q41: L'étiquette "Climat" est déterminée par la production de gaz à effet de serre (GES), production exprimée en équivalent de kg CO2/m².an. | V41: 5
C42: 6 à 10 | F42: B | O42: =IF(climat>=U42,IF(climat<V42,climat,""),"") ->  | U42: 5 | V42: 10
C43: 11 à 20 | G43: C | U43: 10 | V43: 20
C44: 21 à 35 | H44: D | U44: 20 | V44: 35
C45: 36 à 55 | I45: E | U45: 35 | V45: 55
C46: 56 à 80 | J46: F | U46: 55 | V46: 80
C47: =IF(batiment="habitation","> 80","81 à 110") -> > 80 | K47: G | U47: 80 | V47: 110
C48: =IF(batiment="habitation",0,"110 à 145") -> 0 | L48: =IF(batiment="habitation",0,"H") -> 0 | U48: 110 | V48: 145
C49: =IF(batiment="habitation",0,"> 145") -> 0 | M49: =IF(batiment="habitation",0,"I") -> 0 | O49: =IF(climat>=U49,climat,0) -> 0 | U49: 145
C50: Forte émission de GES
O52: kg eq CO2 / m².an
A54: (1) | B54: Chauffage + Eau chaude Sanitaire + Refroidissement
B55: Retirer les consommation liées à l'éclairage et aux autres usages
B56: Pour estimer les consommations électriques, consulter l'onglet "Lisez-moi"
A58: Le comportement de l'usager peut améliorer ou détériorer la performance énergétique d'un bâtiment. Un bâtiment très bien isolé avec les portes ouvertes et un chauffage à 22° nuit et jour produirait une piètre performance. L'occupant est le premier générateur d'économies d'énergie. Il est acteur dans ses choix de confort, de température, de programmation et de comportement tout simplement.
A60: L'énergie finale est l'énergie nécessaire au chauffage, à la production d'eau chaude sanitaire et au refroidissement. Par quantité annuelle d'énergie finale nécessaire au chauffage, on entend les besoins en énergie liés aux déperditions thermiques par l'enveloppe du bâtiment, les pertes des systèmes thermiques, les déperditions thermiques par renouvellement d'air, diminués des apports internes de la maison et des apports solaires. Les compteurs d'énergie affichent une quantité d'énergie finale. Les étiquettes sont calculées en énergie primaire après conversion de l'énergie finale.

Sheet Equivalences
B1: Outil pour calculer les équivalences entre les consommations d'énergies
B3: Consommation annuelle
C5: Energie | E5: Électricité (hors électricité d’origine renouvelable utilisée dans le bâtiment) | H5: 2200 | I5: =IF(estimation="","",VLOOKUP(estimation,coefEnergie,5,FALSE)) -> kWh par an | L5: =IF(estimation="","",VLOOKUP(estimation,coefenergies,7,FALSE)) -> 1
B11: Equivalences
C13: =Coefficients!A14 -> Plaquettes forestières | G13: =IF(ISERROR(conso*conversion/L13),"",conso*conversion/L13) -> 0.7971014493 | I13: =IF(C13="","",VLOOKUP(C13,coefEnergie,5,FALSE)) -> tonnes par an | L13: =IF(C13="","",VLOOKUP(C13,coefenergies,7,FALSE)) -> 2760
C14: =Coefficients!A15 -> Granulés, briquettes | G14: 0.4782608696 | I14: tonnes par an | L14: 4600
C15: =Coefficients!A16 -> Bûches | G15: 1.30952381 | I15: stères par an | L15: 1680
C16: =Coefficients!A17 -> Gaz naturel (kWh) | G16: 2442 | I16: kWh par an | L16: 0.9009009009
C17: =Coefficients!A18 -> Gaz naturel (m3) | G17: 189.1984864 | I17: m3 par an | L17: 11.628
C18: =Coefficients!A19 -> Gaz propane (tonne) | G18: 0.1594202899 | I18: tonnes par an | L18: 13800
C19: =Coefficients!A20 -> Gaz propane (m3) | G19: 189.1984864 | I19: m3 par an | L19: 11.628
C20: =Coefficients!A21 -> Gaz butane (tonne) | G20: 0.172143975 | I20: tonnes par an | L20: 12780
C21: =Coefficients!A22 -> Gaz butane (litre) | G21: 318.8405797 | I21: litres par an | L21: 6.9
C22: =Coefficients!A23 -> Gaz butane (m3) | G22: 189.1984864 | I22: m3 par an | L22: 11.628
C23: =Coefficients!A24 -> Fioul domestique | G23: 220.661986 | I23: litres par an | L23: 9.97
C24: =Coefficients!A25 -> Électricité (hors électricité d’origine renouvelable utilisée dans le bâtiment) | G24: 2200 | I24: kWh par an | L24: 1
C25: =Coefficients!A26 -> Électricité d’origine renouvelable utilisée dans le bâtiment | G25: 2200 | I25: kWh par an | L25: 1
C26: =Coefficients!A27 -> Charbon : Houille | G26: 0.3046247577 | I26: tonnes par an | L26: 7222
C27: =Coefficients!A28 -> Charbon : Coke de houille | G27: 0.2828490615 | I27: tonnes par an | L27: 7778
C28: =Coefficients!A29 -> Charbon : Agglomérés et briquettes de lignite | G28: 0.2474969063 | I28: tonnes par an | L28: 8889
C29: =Coefficients!A30 -> Charbon : Lignite et produits de récupération | G29: 0.4659042778 | I29: tonnes par an | L29: 4722
B32: Les équivalences sont calculées à partir des données citées dans l'Annexe 3.1 de l'arrêté du 15 septembre 2006. Les consommations sont exprimées en énergie finale. L'énergie finale est l'énergie nécessaire au chauffage, à la production d'eau chaude sanitaire et au refroidissement. Par quantité annuelle d'énergie finale nécessaire au chauffage, on entend les besoins en énergie liés aux déperditions thermiques par l'enveloppe du bâtiment, les pertes des systèmes thermiques, les déperditions thermiques par renouvellement d'air, diminués des apports internes de la maison et des apports solaires.

Sheet Lisez-moi
A2: Cet outil a été réalisé à but d'information et de sensibilisation.
A4: Cet outil a été réalisé pour aider les consommateurs à connaître l'état énergétique de son logement ou de son bâtiment à partir des relevés de consommation par type d'énergie.
A6: Il est conseillé de prendre en compte la moyenne des consommations des trois dernières années pour lisser les aléas climatiques et la rigueur ou non de l'hiver.
A8: Le comportement de l'usager peut améliorer ou détériorer la performance énergétique d'un bâtiment. Un bâtiment très bien isolé avec les portes ouvertes et un chauffage à 22° nuit et jour produirait une piètre performance. L'occupant est le premier générateur d'économies d'énergie. Il est acteur dans ses choix de confort, de température, de programmation et de comportement tout simplement.
A10: L'outil reprend les classements et étiquettes du DPE.
A12: Cet outil n'est pas un outil de diagnostic de performance énergétique.
A15: Estimer la consommation électrique à prendre en compte
A17: * Chauffage électrique
A19: Si le chauffage de l'habitation est électrique, attribuer 70 % de la facture d'électricité pour le chauffage et l'eau chaude sanitaire.
A21: Si seul le chauffe-eau de l'habitation est électrique, attribuer 16 % de la consommation pour l'eau chaude sanitaire (ECS).
A22: Source : revue Habitat Naturel (Hors-série N°6 - Avril 2009)
A26: Avril 2010

Sheet Coefficients
A1: Principe des calculs de conversion de l'énergie finale en énergie primaire
D11: PCS | J11: PCI | O11: Consommation | U11: GES
A13: Énergie | B13: Coef EF | C13: Coef GES | D13: Moyenne annuelle des consommations (1) | G13: Conversion en kWh des énergies mesurées (2) | J13: Énergie finale en kWh par an | M13: Facteur de conversion de l'énergie finale en énergie primaire (3) | O13: Énergie primaire (EP) en kWh par an | R13: Facteur de conversion (4) | U13: Emission de Gaz à Effet de Serre (GES)
A14: Plaquettes forestières | B14: =SUM(G14*M14) -> 2760 | C14: =SUM(G14*R14) -> 35.88 | D14: PCS | E14: tonnes par an | G14: 2760 | H14: kWh par tonne | J14: PCI | K14: kWh / an | M14: 1 | O14: EP | P14: kWh / an | R14: 0.013 | S14: kg éq. CO2 par kWh | U14: GES | V14: kg éq. CO2 / an
A15: Granulés, briquettes | B15: =SUM(G15*M15) -> 4600 | C15: =SUM(G15*R15) -> 59.8 | D15: PCS | E15: tonnes par an | G15: 4600 | H15: kWh par tonne | J15: PCI | K15: kWh / an | M15: 1 | O15: EP | P15: kWh / an | R15: 0.013 | S15: kg éq. CO2 par kWh | U15: GES | V15: kg éq. CO2 / an
A16: Bûches | B16: 1680 | C16: 21.84 | D16: PCS | E16: stères par an | G16: 1680 | H16: kWh par stère | J16: PCI | K16: kWh / an | M16: 1 | O16: EP | P16: kWh / an | R16: 0.013 | S16: kg éq. CO2 par kWh | U16: GES | V16: kg éq. CO2 / an
A17: Gaz naturel (kWh) | B17: 0.9009009009 | C17: 0.2108108108 | D17: PCS | E17: kWh par an | G17: =1/1.11 -> 0.9009009009 | H17: kWh par kWh | J17: PCI | K17: kWh / an | M17: 1 | O17: EP | P17: kWh / an | R17: 0.234 | S17: kg éq. CO2 par kWh | U17: GES | V17: kg éq. CO2 / an
A18: Gaz naturel (m3) | B18: =SUM(G18*M18) -> 11.628 | C18: =SUM(G18*R18) -> 2.720952 | D18: PCS | E18: m3 par an | G18: 11.628 | H18: kWh par m3 | J18: PCI | K18: kWh / an | M18: 1 | O18: EP | P18: kWh / an | R18: 0.234 | S18: kg éq. CO2 par kWh | U18: GES | V18: kg éq. CO2 / an
A19: Gaz propane (tonne) | B19: 13800 | C19: 3781.2 | D19: PCS | E19: tonnes par an | G19: 13800 | H19: kWh par tonne | J19: PCI | K19: kWh / an | M19: 1 | O19: EP | P19: kWh / an | R19: 0.274 | S19: kg éq. CO2 par kWh | U19: GES | V19: kg éq. CO2 / an
A20: Gaz propane (m3) | B20: =SUM(G20*M20) -> 11.628 | C20: =SUM(G20*R20) -> 3.186072 | D20: PCS | E20: m3 par an | G20: 11.628 | H20: kWh par m3 | J20: PCI | K20: kWh / an | M20: 1 | O20: EP | P20: kWh / an | R20: 0.274 | S20: kg éq. CO2 par kWh | U20: GES | V20: kg éq. CO2 / an
A21: Gaz butane (tonne) | B21: 12780 | C21: 3501.72 | D21: PCS | E21: tonnes par an | G21: 12780 | H21: kWh par tonne | J21: PCI | K21: kWh / an | M21: 1 | O21: EP | P21: kWh / an | R21: 0.274 | S21: kg éq. CO2 par kWh | U21: GES | V21: kg éq. CO2 / an
A22: Gaz butane (litre) | B22: 6.9 | C22: 1.8906 | D22: PCS | E22: litres par an | G22: 6.9 | H22: kWh par litre | J22: PCI | K22: kWh / an | M22: 1 | O22: EP | P22: kWh / an | R22: 0.274 | S22: kg éq. CO2 par kWh | U22: GES | V22: kg éq. CO2 / an
A23: Gaz butane (m3) | B23: =SUM(G23*M23) -> 11.628 | C23: =SUM(G23*R23) -> 3.186072 | D23: PCS | E23: m3 par an | G23: 11.628 | H23: kWh par m3 | J23: PCI | K23: kWh / an | M23: 1 | O23: EP | P23: kWh / an | R23: 0.274 | S23: kg éq. CO2 par kWh | U23: GES | V23: kg éq. CO2 / an
A24: Fioul domestique | B24: 9.97 | C24: 2.991 | D24: PCS | E24: litres par an | G24: 9.97 | H24: kWh par litre | J24: PCI | K24: kWh / an | M24: 1 | O24: EP | P24: kWh / an | R24: 0.3 | S24: kg éq. CO2 par kWh | U24: GES | V24: kg éq. CO2 / an
A25: Électricité (hors électricité d’origine renouvelable utilisée dans le bâtiment) | B25: 2.58 | C25: 0.084 | D25: PCS | E25: kWh par an | G25: 1 | H25: kWh par kWh | J25: PCI | K25: kWh / an | M25: 2.58 | O25: EP | P25: kWh / an | R25: 0.084 | S25: kg éq. CO2 par kWh | U25: GES | V25: kg éq. CO2 / an
A26: Électricité d’origine renouvelable utilisée dans le bâtiment | B26: =SUM(G26*M26) -> 2.58 | C26: =SUM(G26*R26) -> 0 | D26: PCS | E26: kWh par an | G26: 1 | H26: kWh par kWh | J26: PCI | K26: kWh / an | M26: 2.58 | O26: EP | P26: kWh / an | R26: 0 | S26: kg éq. CO2 par kWh | U26: GES | V26: kg éq. CO2 / an
A27: Charbon : Houille | B27: =SUM(G27*M27) -> 7222 | C27: =SUM(G27*R27) -> 2773.248 | D27: PCS | E27: tonnes par an | G27: 7222 | H27: kWh par tonne | K27: kWh / an | M27: 1 | O27: EP | P27: kWh / an | R27: 0.384 | S27: kg éq. CO2 par kWh | U27: GES | V27: kg éq. CO2 / an
A28: Charbon : Coke de houille | B28: =SUM(G28*M28) -> 7778 | C28: =SUM(G28*R28) -> 2986.752 | D28: PCS | E28: tonnes par an | G28: 7778 | H28: kWh par tonne | K28: kWh / an | M28: 1 | O28: EP | P28: kWh / an | R28: 0.384 | S28: kg éq. CO2 par kWh | U28: GES | V28: kg éq. CO2 / an
A29: Charbon : Agglomérés et briquettes de lignite | B29: =SUM(G29*M29) -> 8889 | C29: =SUM(G29*R29) -> 3413.376 | D29: PCS | E29: tonnes par an | G29: 8889 | H29: kWh par tonne | K29: kWh / an | M29: 1 | O29: EP | P29: kWh / an | R29: 0.384 | S29: kg éq. CO2 par kWh | U29: GES | V29: kg éq. CO2 / an
A30: Charbon : Lignite et produits de récupération | B30: 4722 | C30: 1813.248 | D30: PCS | E30: tonnes par an | G30: 4722 | H30: kWh par tonne | J30: PCI | K30: kWh / an | M30: 1 | O30: EP | P30: kWh / an | R30: 0.384 | S30: kg éq. CO2 par kWh | U30: GES | V30: kg éq. CO2 / an
A32: (1) | D32: Chauffage + Eau chaude Sanitaire + Refroidissement | L32: Valeur saisie (relévé de compteur…)
D33: Retirer les consommation liées à l'éclairage, autres usages | L33: Constante
A34: (2) | D34: cf. Annexe 3.1 de l'arrêté du 15 septembre 2006 | L34: Valeur calculée
A35: (3) | D35: cf. Annexe 3.2 de l'arrêté du 15 septembre 2006
A36: (4) | D36: cf. Annexe 4.1.2 de l'arrêté du 15 septembre 2006
